[Event "Titled Tuesday Blitz September 13 Early 2022"]
[White "Korchmar, Vasiliy"]
[Black "Cardoso Cardoso, Jose Gabriel"]
[WhiteFideId "24131750"]
[BlackFideId "4430492"]
[WhiteElo "2370"]
[BlackElo "2485"]
[Result "1-0"]
[Round "10"]
[TimeControl "180+1"]
[Date "2022.09.13"]
[WhiteClock "0:00:05"]
[BlackClock "0:00:03"]

1. e4 {[%clk 0:03:00]}  g6 {[%clk 0:02:50]} 2. d4 {[%clk 0:03:00]}  Bg7 {[%clk 0:02:49]} 3. Nc3 {[%clk 0:03:01]}  d6 {[%clk 0:02:48]} 4. g3 {[%clk 0:03:01]}  a6 {[%clk 0:02:47]} 5. Bg2 {[%clk 0:03:00]}  b5 {[%clk 0:02:42]} 6. Nge2 {[%clk 0:03:00]}  Bb7 {[%clk 0:02:42]} 7. a3 {[%clk 0:02:59]}  Nd7 {[%clk 0:02:42]} 8. O-O {[%clk 0:02:59]}  e6 {[%clk 0:02:40]} 9. Be3 {[%clk 0:02:58]}  Ne7 {[%clk 0:02:39]} 10. Qd2 {[%clk 0:02:56]}  O-O {[%clk 0:02:35]} 11. Bh6 {[%clk 0:02:56]}  Kh8 {[%clk 0:02:01]} 12. Rad1 {[%clk 0:02:56]}  Ng8 {[%clk 0:01:59]} 13. Bxg7+ {[%clk 0:02:55]}  Kxg7 {[%clk 0:02:00]} 14. f4 {[%clk 0:02:56]}  Ne7 {[%clk 0:01:50]} 15. g4 {[%clk 0:02:54]}  f5 {[%clk 0:01:37]} 16. gxf5 {[%clk 0:02:49]}  exf5 {[%clk 0:01:33]} 17. e5 {[%clk 0:02:45]}  Bxg2 {[%clk 0:01:28]} 18. Kxg2 {[%clk 0:02:46]}  d5 {[%clk 0:01:22]} 19. Qe3 {[%clk 0:02:19]}  Rh8 {[%clk 0:01:18]} 20. Nc1 {[%clk 0:02:07]}  Nf8 {[%clk 0:01:17]} 21. Nd3 {[%clk 0:02:04]}  Ne6 {[%clk 0:01:16]} 22. Ne2 {[%clk 0:01:58]}  Qd7 {[%clk 0:01:14]} 23. h4 {[%clk 0:01:46]}  Kf7 {[%clk 0:01:13]} 24. Rh1 {[%clk 0:01:36]}  Rag8 {[%clk 0:01:09]} 25. Kf2 {[%clk 0:01:35]}  Qc6 {[%clk 0:01:06]} 26. c3 {[%clk 0:01:31]}  Qc4 {[%clk 0:01:04]} 27. Rdg1 {[%clk 0:01:29]}  a5 {[%clk 0:00:59]} 28. h5 {[%clk 0:01:27]}  Qb3 {[%clk 0:00:55]} 29. Nc5 {[%clk 0:01:22]}  Qc2 {[%clk 0:00:51]} 30. Nd7 {[%clk 0:01:09]}  c6 {[%clk 0:00:43]} 31. Nf6 {[%clk 0:01:09]}  Rf8 {[%clk 0:00:40]} 32. Nxh7 {[%clk 0:01:03]}  gxh5 {[%clk 0:00:26]} 33. Nxf8 {[%clk 0:00:53]}  Kxf8 {[%clk 0:00:22]} 34. Qg3 {[%clk 0:00:42]}  Qxb2 {[%clk 0:00:18]} 35. Qh4 {[%clk 0:00:41]}  Rh6 {[%clk 0:00:15]} 36. Rg3 {[%clk 0:00:30]}  b4 {[%clk 0:00:11]} 37. axb4 {[%clk 0:00:28]}  axb4 {[%clk 0:00:12]} 38. Re1 {[%clk 0:00:10]}  bxc3 {[%clk 0:00:11]} 39. Rxc3 {[%clk 0:00:11]}  Nxd4 {[%clk 0:00:10]} 40. Rg3 {[%clk 0:00:03]}  Ne6 {[%clk 0:00:09]} 41. Qh3 {[%clk 0:00:01]}  d4 {[%clk 0:00:09]} 42. Qg2 {[%clk 0:00:01]}  d3 {[%clk 0:00:08]} 43. Rxd3 {[%clk 0:00:01]}  Nxf4 {[%clk 0:00:05]} 44. Qg3 {[%clk 0:00:01]}  Nxd3+ {[%clk 0:00:04]} 45. Qxd3 {[%clk 0:00:02]}  Qb6+ {[%clk 0:00:02]} 46. Kf1 {[%clk 0:00:02]}  Qb5 {[%clk 0:00:02]} 47. Qxb5 {[%clk 0:00:01]}  cxb5 {[%clk 0:00:03]} 48. Nd4 {[%clk 0:00:02]}  b4 {[%clk 0:00:04]} 49. e6 {[%clk 0:00:02]}  f4 {[%clk 0:00:03]} 50. Rb1 {[%clk 0:00:02]}  h4 {[%clk 0:00:02]} 51. Rxb4 {[%clk 0:00:02]}  h3 {[%clk 0:00:03]} 52. Kg1 {[%clk 0:00:03]}  h2+ {[%clk 0:00:03]} 53. Kh1 {[%clk 0:00:03]}  Kg7 {[%clk 0:00:03]} 54. Rb2 {[%clk 0:00:03]}  Kf6 {[%clk 0:00:02]} 55. Rxh2 {[%clk 0:00:04]}  Rg6 {[%clk 0:00:03]} 56. Rf2 {[%clk 0:00:03]}  Ke5 {[%clk 0:00:03]} 57. Rd2 {[%clk 0:00:03]}  Nd5 {[%clk 0:00:03]} 58. Nf3+ {[%clk 0:00:03]}  Ke4 {[%clk 0:00:03]} 59. Nd4 {[%clk 0:00:03]}  Ke3 {[%clk 0:00:03]} 60. Rd1 {[%clk 0:00:03]}  Nc3 {[%clk 0:00:03]} 61. e7 {[%clk 0:00:02]}  Kf2 {[%clk 0:00:02]} 62. Rd2+ {[%clk 0:00:02]}  Kf1 {[%clk 0:00:03]} 63. e8=Q {[%clk 0:00:02]}  Rh6+ {[%clk 0:00:01]} 64. Rh2 {[%clk 0:00:02]}  Rh5 {[%clk 0:00:02]} 65. Qxh5 {[%clk 0:00:02]}  Nd1 {[%clk 0:00:03]} 66. Qh3+ {[%clk 0:00:03]}  Ke1 {[%clk 0:00:03]} 67. Rg2 {[%clk 0:00:03]}  Nf2+ {[%clk 0:00:03]} 68. Rxf2 {[%clk 0:00:04]}  Kxf2 {[%clk 0:00:02]} 69. Qf3+ {[%clk 0:00:04]}  Ke1 {[%clk 0:00:03]} 70. Qe2# {[%clk 0:00:05]} 1-0


[Site "https://www.chess.com"]

[Event "Titled Tuesday Blitz September 13 Early 2022"]
[White "Lopez, Henry"]
[Black "Harsh Suresh"]
[WhiteFideId "5203830"]
[BlackFideId "45018464"]
[WhiteElo "2177"]
[BlackElo "2070"]
[Result "1-0"]
[Round "10"]
[TimeControl "180+1"]
[Date "2022.09.13"]
[WhiteClock "0:00:24"]
[BlackClock "0:00:06"]

1. d4 {[%clk 0:03:00]}  g6 {[%clk 0:02:55]} 2. Nf3 {[%clk 0:02:59]}  Bg7 {[%clk 0:02:55]} 3. c4 {[%clk 0:02:58]}  d6 {[%clk 0:02:53]} 4. Nc3 {[%clk 0:02:58]}  Nf6 {[%clk 0:02:50]} 5. e4 {[%clk 0:02:58]}  O-O {[%clk 0:02:48]} 6. Be2 {[%clk 0:02:58]}  e5 {[%clk 0:02:46]} 7. O-O {[%clk 0:02:57]}  Nc6 {[%clk 0:02:46]} 8. d5 {[%clk 0:02:57]}  Ne7 {[%clk 0:02:45]} 9. b4 {[%clk 0:02:57]}  Nh5 {[%clk 0:02:41]} 10. Re1 {[%clk 0:02:55]}  f5 {[%clk 0:02:37]} 11. Ng5 {[%clk 0:02:55]}  Nf4 {[%clk 0:02:35]} 12. Bxf4 {[%clk 0:02:54]}  exf4 {[%clk 0:02:35]} 13. Rc1 {[%clk 0:02:55]}  fxe4 {[%clk 0:01:59]} 14. Ncxe4 {[%clk 0:02:48]}  Nf5 {[%clk 0:01:59]} 15. c5 {[%clk 0:02:36]}  h6 {[%clk 0:01:48]} 16. Nf3 {[%clk 0:02:22]}  g5 {[%clk 0:01:46]} 17. h3 {[%clk 0:02:20]}  a5 {[%clk 0:01:43]} 18. a3 {[%clk 0:02:19]}  axb4 {[%clk 0:01:42]} 19. axb4 {[%clk 0:02:19]}  Re8 {[%clk 0:01:43]} 20. Bc4 {[%clk 0:02:15]}  Kh8 {[%clk 0:01:32]} 21. Qd3 {[%clk 0:02:09]}  Ne7 {[%clk 0:01:11]} 22. cxd6 {[%clk 0:01:36]}  cxd6 {[%clk 0:01:08]} 23. Bb5 {[%clk 0:01:32]}  Rf8 {[%clk 0:01:06]} 24. Bc4 {[%clk 0:01:23]}  Bf5 {[%clk 0:01:05]} 25. Qb3 {[%clk 0:01:22]}  Ng6 {[%clk 0:01:00]} 26. Bd3 {[%clk 0:01:16]}  Qb6 {[%clk 0:00:58]} 27. Qb1 {[%clk 0:01:10]}  Ra4 {[%clk 0:00:44]} 28. b5 {[%clk 0:01:09]}  Ra1 {[%clk 0:00:19]} 29. Qb4 {[%clk 0:01:06]}  Rxc1 {[%clk 0:00:16]} 30. Rxc1 {[%clk 0:01:05]}  Ne5 {[%clk 0:00:17]} 31. Nxe5 {[%clk 0:01:00]}  Bxe5 {[%clk 0:00:17]} 32. Qe1 {[%clk 0:00:37]}  Re8 {[%clk 0:00:16]} 33. Qd1 {[%clk 0:00:34]}  Qd4 {[%clk 0:00:15]} 34. Qh5 {[%clk 0:00:28]}  Rg8 {[%clk 0:00:06]} 35. Qxh6+ {[%clk 0:00:26]}  Bh7 {[%clk 0:00:06]} 36. Nxg5 {[%clk 0:00:24]}  Qxd3 {[%clk 0:00:06]} 37. Nf7# {[%clk 0:00:24]} 1-0


[Site "https://www.chess.com"]

[Event "Titled Tuesday Blitz September 13 Early 2022"]
[White "Martinez Alcantara, Jose Eduardo"]
[Black "Beerdsen, Thomas"]
[WhiteFideId "3805662"]
[BlackFideId "1030108"]
[WhiteElo "2703"]
[BlackElo "2567"]
[Result "1-0"]
[Round "10"]
[TimeControl "180+1"]
[Date "2022.09.13"]
[WhiteClock "0:00:45"]
[BlackClock "0:00:47"]

1. e4 {[%clk 0:03:00]}  e5 {[%clk 0:02:56]} 2. Nf3 {[%clk 0:03:01]}  Nc6 {[%clk 0:02:56]} 3. Bb5 {[%clk 0:03:01]}  f5 {[%clk 0:02:56]} 4. Nc3 {[%clk 0:03:01]}  fxe4 {[%clk 0:02:55]} 5. Nxe4 {[%clk 0:03:02]}  Nf6 {[%clk 0:02:56]} 6. Qe2 {[%clk 0:03:02]}  d5 {[%clk 0:02:56]} 7. Nxf6+ {[%clk 0:03:03]}  gxf6 {[%clk 0:02:57]} 8. d4 {[%clk 0:03:03]}  Bg7 {[%clk 0:02:57]} 9. c4 {[%clk 0:03:03]}  O-O {[%clk 0:02:56]} 10. cxd5 {[%clk 0:03:01]}  Nxd4 {[%clk 0:02:54]} 11. Nxd4 {[%clk 0:03:01]}  exd4 {[%clk 0:02:55]} 12. O-O {[%clk 0:03:02]}  Kh8 {[%clk 0:02:54]} 13. Qf3 {[%clk 0:02:57]}  c6 {[%clk 0:02:44]} 14. dxc6 {[%clk 0:02:56]}  bxc6 {[%clk 0:02:45]} 15. Bxc6 {[%clk 0:02:57]}  Rb8 {[%clk 0:02:46]} 16. b3 {[%clk 0:02:47]}  Ba6 {[%clk 0:02:42]} 17. Re1 {[%clk 0:02:42]}  Qa5 {[%clk 0:02:39]} 18. Bf4 {[%clk 0:02:41]}  Rbd8 {[%clk 0:02:39]} 19. a3 {[%clk 0:02:32]}  d3 {[%clk 0:02:35]} 20. b4 {[%clk 0:02:32]}  Qb6 {[%clk 0:02:26]} 21. Rad1 {[%clk 0:02:18]}  Bb5 {[%clk 0:02:12]} 22. Be4 {[%clk 0:02:16]}  Rfe8 {[%clk 0:01:54]} 23. Qh5 {[%clk 0:02:13]}  Rxe4 {[%clk 0:01:52]} 24. Rxe4 {[%clk 0:02:14]}  Qc6 {[%clk 0:01:42]} 25. Ree1 {[%clk 0:02:02]}  Rd5 {[%clk 0:01:26]} 26. Qf3 {[%clk 0:01:51]}  Qd7 {[%clk 0:01:17]} 27. h3 {[%clk 0:01:42]}  Bc6 {[%clk 0:01:16]} 28. Qg4 {[%clk 0:01:29]}  f5 {[%clk 0:01:14]} 29. Qh4 {[%clk 0:01:24]}  Qf7 {[%clk 0:01:10]} 30. Re3 {[%clk 0:01:17]}  d2 {[%clk 0:00:54]} 31. Rg3 {[%clk 0:01:15]}  Qd7 {[%clk 0:00:50]} 32. Qg5 {[%clk 0:00:45]}  h6 {[%clk 0:00:47]} 33. Qg6 {[%clk 0:00:45]} 1-0


[Site "https://www.chess.com"]

[Event "Titled Tuesday Blitz September 13 Early 2022"]
[White "Odegov, Artem"]
[Black "Dimitrov, Atanas"]
[WhiteFideId "34183644"]
[BlackFideId "2901315"]
[WhiteElo "2286"]
[BlackElo "2732"]
[Result "1-0"]
[Round "10"]
[TimeControl "180+1"]
[Date "2022.09.13"]
[WhiteClock "0:01:10"]
[BlackClock "0:00:27"]

1. d4 {[%clk 0:03:00]}  Nf6 {[%clk 0:02:59]} 2. c4 {[%clk 0:03:00]}  g6 {[%clk 0:03:00]} 3. Nc3 {[%clk 0:03:00]}  d5 {[%clk 0:03:01]} 4. cxd5 {[%clk 0:03:01]}  Nxd5 {[%clk 0:03:01]} 5. e4 {[%clk 0:03:02]}  Nxc3 {[%clk 0:03:02]} 6. bxc3 {[%clk 0:03:03]}  Bg7 {[%clk 0:03:03]} 7. Bc4 {[%clk 0:03:04]}  O-O {[%clk 0:03:02]} 8. Ne2 {[%clk 0:03:05]}  c5 {[%clk 0:03:03]} 9. Be3 {[%clk 0:03:05]}  cxd4 {[%clk 0:03:03]} 10. cxd4 {[%clk 0:03:06]}  Nc6 {[%clk 0:03:03]} 11. O-O {[%clk 0:03:07]}  b6 {[%clk 0:03:01]} 12. Rc1 {[%clk 0:03:00]}  Bb7 {[%clk 0:03:01]} 13. Qd2 {[%clk 0:03:00]}  Rc8 {[%clk 0:03:00]} 14. f3 {[%clk 0:03:00]}  e6 {[%clk 0:02:59]} 15. Rfd1 {[%clk 0:03:00]}  Qd7 {[%clk 0:02:52]} 16. d5 {[%clk 0:02:54]}  Na5 {[%clk 0:02:48]} 17. Qb4 {[%clk 0:02:15]}  Nxc4 {[%clk 0:02:27]} 18. Rxc4 {[%clk 0:02:16]}  exd5 {[%clk 0:02:26]} 19. Rxc8 {[%clk 0:02:11]}  Rxc8 {[%clk 0:02:24]} 20. Nf4 {[%clk 0:02:08]}  d4 {[%clk 0:02:01]} 21. Bxd4 {[%clk 0:02:03]}  Rd8 {[%clk 0:02:00]} 22. Nd5 {[%clk 0:01:49]}  Bxd5 {[%clk 0:01:36]} 23. Bxg7 {[%clk 0:01:46]}  Kxg7 {[%clk 0:01:34]} 24. Rxd5 {[%clk 0:01:45]}  Qxd5 {[%clk 0:00:55]} 25. exd5 {[%clk 0:01:43]}  Rxd5 {[%clk 0:00:55]} 26. g4 {[%clk 0:01:39]}  h5 {[%clk 0:00:55]} 27. h3 {[%clk 0:01:36]}  hxg4 {[%clk 0:00:54]} 28. hxg4 {[%clk 0:01:37]}  g5 {[%clk 0:00:50]} 29. Kf2 {[%clk 0:01:33]}  Rc5 {[%clk 0:00:50]} 30. Ke3 {[%clk 0:01:30]}  f6 {[%clk 0:00:47]} 31. Ke4 {[%clk 0:01:30]}  Kf7 {[%clk 0:00:46]} 32. Qd4 {[%clk 0:01:26]}  Ke6 {[%clk 0:00:45]} 33. Qd8 {[%clk 0:01:26]}  Rc4+ {[%clk 0:00:45]} 34. Kd3 {[%clk 0:01:26]}  Rc5 {[%clk 0:00:44]} 35. Qe8+ {[%clk 0:01:26]}  Kd6 {[%clk 0:00:44]} 36. Qf7 {[%clk 0:01:25]}  Rd5+ {[%clk 0:00:40]} 37. Kc4 {[%clk 0:01:25]}  Rc5+ {[%clk 0:00:40]} 38. Kd4 {[%clk 0:01:25]}  Ra5 {[%clk 0:00:36]} 39. Qxf6+ {[%clk 0:01:24]}  Kc7 {[%clk 0:00:36]} 40. Qe7+ {[%clk 0:01:23]}  Kc6 {[%clk 0:00:37]} 41. Qe6+ {[%clk 0:01:24]}  Kc7 {[%clk 0:00:37]} 42. f4 {[%clk 0:01:18]}  Ra4+ {[%clk 0:00:34]} 43. Ke3 {[%clk 0:01:14]}  gxf4+ {[%clk 0:00:32]} 44. Kf3 {[%clk 0:01:11]}  Rd4 {[%clk 0:00:29]} 45. g5 {[%clk 0:01:10]}  Rd7 {[%clk 0:00:27]} 46. g6 {[%clk 0:01:10]} 1-0


[Site "https://www.chess.com"]

[Event "Titled Tuesday Blitz September 13 Early 2022"]
[White "Oparin, Grigoriy"]
[Black "Grandelius, Nils"]
[WhiteFideId "24125890"]
[BlackFideId "1710400"]
[WhiteElo "2639"]
[BlackElo "2617"]
[Result "0-1"]
[Round "10"]
[TimeControl "180+1"]
[Date "2022.09.13"]
[WhiteClock "0:00:08"]
[BlackClock "0:00:18"]

1. Nf3 {[%clk 0:03:00]}  d5 {[%clk 0:02:58]} 2. g3 {[%clk 0:03:01]}  g6 {[%clk 0:02:57]} 3. c4 {[%clk 0:03:01]}  dxc4 {[%clk 0:02:53]} 4. Na3 {[%clk 0:03:01]}  Be6 {[%clk 0:02:46]} 5. Ng5 {[%clk 0:02:56]}  Bd5 {[%clk 0:02:45]} 6. e4 {[%clk 0:02:57]}  Bc6 {[%clk 0:02:45]} 7. Bxc4 {[%clk 0:02:56]}  e6 {[%clk 0:02:45]} 8. d3 {[%clk 0:02:57]}  Nd7 {[%clk 0:02:42]} 9. f4 {[%clk 0:02:34]}  Ngf6 {[%clk 0:01:59]} 10. O-O {[%clk 0:02:31]}  Nb6 {[%clk 0:01:55]} 11. Bb3 {[%clk 0:02:30]}  Bc5+ {[%clk 0:01:53]} 12. Kg2 {[%clk 0:02:28]}  Qd7 {[%clk 0:01:53]} 13. Qc2 {[%clk 0:02:19]}  Bd4 {[%clk 0:01:37]} 14. Nf3 {[%clk 0:02:12]}  O-O-O {[%clk 0:01:36]} 15. Re1 {[%clk 0:02:02]}  h5 {[%clk 0:01:33]} 16. Nxd4 {[%clk 0:01:57]}  Qxd4 {[%clk 0:01:32]} 17. Be3 {[%clk 0:01:58]}  Qxd3 {[%clk 0:01:28]} 18. Qxd3 {[%clk 0:01:47]}  Rxd3 {[%clk 0:01:29]} 19. Bc2 {[%clk 0:01:47]}  Rd7 {[%clk 0:01:06]} 20. Kg1 {[%clk 0:01:41]}  Rhd8 {[%clk 0:01:02]} 21. Rac1 {[%clk 0:01:21]}  Kb8 {[%clk 0:00:56]} 22. b4 {[%clk 0:01:19]}  a6 {[%clk 0:00:54]} 23. f5 {[%clk 0:01:09]}  Ng4 {[%clk 0:00:39]} 24. fxe6 {[%clk 0:01:04]}  fxe6 {[%clk 0:00:38]} 25. Bg5 {[%clk 0:00:58]}  Rf8 {[%clk 0:00:36]} 26. Rf1 {[%clk 0:00:51]}  Rdf7 {[%clk 0:00:34]} 27. Rxf7 {[%clk 0:00:18]}  Rxf7 {[%clk 0:00:35]} 28. Rf1 {[%clk 0:00:18]}  Rxf1+ {[%clk 0:00:34]} 29. Kxf1 {[%clk 0:00:19]}  Nxh2+ {[%clk 0:00:34]} 30. Ke2 {[%clk 0:00:19]}  Ng4 {[%clk 0:00:34]} 31. Kd3 {[%clk 0:00:14]}  Nd7 {[%clk 0:00:32]} 32. Kd4 {[%clk 0:00:13]}  Nde5 {[%clk 0:00:30]} 33. Bf4 {[%clk 0:00:12]}  Nf3+ {[%clk 0:00:30]} 34. Kc3 {[%clk 0:00:12]}  g5 {[%clk 0:00:29]} 35. Bc1 {[%clk 0:00:11]}  h4 {[%clk 0:00:29]} 36. gxh4 {[%clk 0:00:11]}  gxh4 {[%clk 0:00:30]} 37. Bd1 {[%clk 0:00:11]}  Bxe4 {[%clk 0:00:31]} 38. b5 {[%clk 0:00:07]}  h3 {[%clk 0:00:30]} 39. Bf4 {[%clk 0:00:07]}  h2 {[%clk 0:00:29]} 40. Bxh2 {[%clk 0:00:07]}  Ngxh2 {[%clk 0:00:28]} 41. bxa6 {[%clk 0:00:07]}  bxa6 {[%clk 0:00:29]} 42. Nc4 {[%clk 0:00:07]}  Bd5 {[%clk 0:00:29]} 43. Ne3 {[%clk 0:00:08]}  c5 {[%clk 0:00:27]} 44. a4 {[%clk 0:00:07]}  Kc7 {[%clk 0:00:28]} 45. a5 {[%clk 0:00:08]}  Ne5 {[%clk 0:00:27]} 46. Be2 {[%clk 0:00:08]}  Nc6 {[%clk 0:00:26]} 47. Bxa6 {[%clk 0:00:07]}  Nxa5 {[%clk 0:00:27]} 48. Bb5 {[%clk 0:00:08]}  Nf3 {[%clk 0:00:27]} 49. Ng4 {[%clk 0:00:07]}  Nd4 {[%clk 0:00:27]} 50. Bd3 {[%clk 0:00:07]}  Nac6 {[%clk 0:00:27]} 51. Nf6 {[%clk 0:00:07]}  Kd6 {[%clk 0:00:27]} 52. Bf1 {[%clk 0:00:07]}  Na7 {[%clk 0:00:25]} 53. Bh3 {[%clk 0:00:06]}  Nab5+ {[%clk 0:00:26]} 54. Kd3 {[%clk 0:00:07]}  c4+ {[%clk 0:00:26]} 55. Ke3 {[%clk 0:00:07]}  Nf5+ {[%clk 0:00:25]} 56. Kd2 {[%clk 0:00:07]}  Ke5 {[%clk 0:00:21]} 57. Nd7+ {[%clk 0:00:08]}  Kd4 {[%clk 0:00:22]} 58. Nb6 {[%clk 0:00:08]}  c3+ {[%clk 0:00:22]} 59. Kc1 {[%clk 0:00:09]}  Ng3 {[%clk 0:00:19]} 60. Bg4 {[%clk 0:00:08]}  e5 {[%clk 0:00:18]} 0-1


[Site "https://www.chess.com"]

[Event "Titled Tuesday Blitz September 13 Early 2022"]
[White "Pap, Gyula"]
[Black "Kamsky, Gata"]
[WhiteFideId "725323"]
[BlackFideId "2000024"]
[WhiteElo "2519"]
[BlackElo "2666"]
[Result "0-1"]
[Round "10"]
[TimeControl "180+1"]
[Date "2022.09.13"]
[WhiteClock "0:00:01"]
[BlackClock "0:00:03"]

1. d4 {[%clk 0:03:00]}  f5 {[%clk 0:02:55]} 2. Nc3 {[%clk 0:03:00]}  Nf6 {[%clk 0:02:52]} 3. Bg5 {[%clk 0:03:00]}  d5 {[%clk 0:02:50]} 4. f3 {[%clk 0:03:00]}  c6 {[%clk 0:02:38]} 5. Qd2 {[%clk 0:02:47]}  b5 {[%clk 0:02:23]} 6. a3 {[%clk 0:02:42]}  e6 {[%clk 0:02:20]} 7. e4 {[%clk 0:02:39]}  Be7 {[%clk 0:02:19]} 8. e5 {[%clk 0:02:07]}  Nfd7 {[%clk 0:02:11]} 9. Bxe7 {[%clk 0:02:07]}  Qxe7 {[%clk 0:02:10]} 10. f4 {[%clk 0:02:08]}  a5 {[%clk 0:02:08]} 11. Nf3 {[%clk 0:02:06]}  Ba6 {[%clk 0:02:06]} 12. Nd1 {[%clk 0:01:55]}  b4 {[%clk 0:01:44]} 13. axb4 {[%clk 0:01:56]}  axb4 {[%clk 0:01:44]} 14. Ne3 {[%clk 0:01:52]}  c5 {[%clk 0:01:32]} 15. c4 {[%clk 0:00:27]}  bxc3 {[%clk 0:01:28]} 16. bxc3 {[%clk 0:00:28]}  O-O {[%clk 0:01:18]} 17. Be2 {[%clk 0:00:22]}  Nb6 {[%clk 0:01:17]} 18. O-O {[%clk 0:00:20]}  Bxe2 {[%clk 0:01:14]} 19. Qxe2 {[%clk 0:00:21]}  N8d7 {[%clk 0:01:05]} 20. Qb5 {[%clk 0:00:17]}  Rfc8 {[%clk 0:00:57]} 21. Rfb1 {[%clk 0:00:07]}  cxd4 {[%clk 0:00:39]} 22. cxd4 {[%clk 0:00:08]}  h6 {[%clk 0:00:28]} 23. h3 {[%clk 0:00:08]}  Kh7 {[%clk 0:00:19]} 24. Qd3 {[%clk 0:00:04]}  Rxa1 {[%clk 0:00:17]} 25. Rxa1 {[%clk 0:00:05]}  Kg8 {[%clk 0:00:16]} 26. Qb5 {[%clk 0:00:04]}  Kh7 {[%clk 0:00:16]} 27. Ra7 {[%clk 0:00:04]}  Qe8 {[%clk 0:00:13]} 28. Qb1 {[%clk 0:00:03]}  Kh8 {[%clk 0:00:11]} 29. g4 {[%clk 0:00:03]}  fxg4 {[%clk 0:00:09]} 30. hxg4 {[%clk 0:00:04]}  Rc3 {[%clk 0:00:09]} 31. Kf2 {[%clk 0:00:03]}  Nc4 {[%clk 0:00:08]} 32. Nxc4 {[%clk 0:00:03]}  Rxc4 {[%clk 0:00:07]} 33. Qa2 {[%clk 0:00:03]}  Rc8 {[%clk 0:00:06]} 34. Qa4 {[%clk 0:00:02]}  Nb6 {[%clk 0:00:05]} 35. Qxe8+ {[%clk 0:00:03]}  Rxe8 {[%clk 0:00:05]} 36. Ra6 {[%clk 0:00:02]}  Nc4 {[%clk 0:00:05]} 37. Kg3 {[%clk 0:00:01]}  Nd2 {[%clk 0:00:03]} 0-1


[Site "https://www.chess.com"]

[Event "Titled Tuesday Blitz September 13 Early 2022"]
[White "Postny, Evgeny"]
[Black "Rustemov, Alexander"]
[WhiteFideId "2804344"]
[BlackFideId "4119002"]
[WhiteElo "2456"]
[BlackElo "2854"]
[Result "0-1"]
[Round "10"]
[TimeControl "180+1"]
[Date "2022.09.13"]
[WhiteClock "0:00:02"]
[BlackClock "0:00:44"]

1. e4 {[%clk 0:03:00]}  e6 {[%clk 0:03:00]} 2. d4 {[%clk 0:03:01]}  d5 {[%clk 0:03:00]} 3. Nd2 {[%clk 0:03:02]}  dxe4 {[%clk 0:03:00]} 4. Nxe4 {[%clk 0:03:02]}  Bd7 {[%clk 0:03:01]} 5. Nf3 {[%clk 0:03:01]}  Bc6 {[%clk 0:03:02]} 6. Bd3 {[%clk 0:03:02]}  Nd7 {[%clk 0:03:02]} 7. O-O {[%clk 0:03:02]}  Ngf6 {[%clk 0:03:03]} 8. Ned2 {[%clk 0:03:02]}  Be7 {[%clk 0:03:03]} 9. Nc4 {[%clk 0:03:00]}  Bd5 {[%clk 0:03:03]} 10. Ne3 {[%clk 0:02:57]}  Bc6 {[%clk 0:03:03]} 11. Re1 {[%clk 0:02:56]}  O-O {[%clk 0:03:02]} 12. b3 {[%clk 0:02:55]}  b5 {[%clk 0:02:58]} 13. Bb2 {[%clk 0:02:52]}  b4 {[%clk 0:02:58]} 14. Ne5 {[%clk 0:02:42]}  Bb7 {[%clk 0:02:47]} 15. Qe2 {[%clk 0:02:30]}  a5 {[%clk 0:02:46]} 16. Rad1 {[%clk 0:02:27]}  Nb6 {[%clk 0:02:32]} 17. N3g4 {[%clk 0:02:12]}  Nbd5 {[%clk 0:02:30]} 18. Nxf6+ {[%clk 0:02:02]}  Nxf6 {[%clk 0:02:30]} 19. Bc4 {[%clk 0:01:57]}  Bd5 {[%clk 0:02:29]} 20. h3 {[%clk 0:01:49]}  c6 {[%clk 0:02:27]} 21. Rd3 {[%clk 0:01:44]}  Qc7 {[%clk 0:02:26]} 22. Rg3 {[%clk 0:01:36]}  g6 {[%clk 0:01:58]} 23. h4 {[%clk 0:01:27]}  Ne4 {[%clk 0:01:51]} 24. Re3 {[%clk 0:01:20]}  Nd6 {[%clk 0:01:48]} 25. h5 {[%clk 0:01:15]}  Bf6 {[%clk 0:01:46]} 26. Rh3 {[%clk 0:01:07]}  Nf5 {[%clk 0:01:38]} 27. Bd3 {[%clk 0:00:56]}  Rad8 {[%clk 0:01:33]} 28. Qg4 {[%clk 0:00:50]}  Bg7 {[%clk 0:01:29]} 29. hxg6 {[%clk 0:00:45]}  fxg6 {[%clk 0:01:27]} 30. Nxg6 {[%clk 0:00:28]}  hxg6 {[%clk 0:01:25]} 31. Qxg6 {[%clk 0:00:29]}  Rf6 {[%clk 0:01:18]} 32. Qh7+ {[%clk 0:00:26]}  Kf7 {[%clk 0:01:17]} 33. Qh5+ {[%clk 0:00:19]}  Kf8 {[%clk 0:01:16]} 34. Bc1 {[%clk 0:00:18]}  Qf7 {[%clk 0:01:13]} 35. Bg5 {[%clk 0:00:15]}  Qxh5 {[%clk 0:01:08]} 36. Rxh5 {[%clk 0:00:16]}  Nxd4 {[%clk 0:01:05]} 37. Bxf6 {[%clk 0:00:15]}  Bxf6 {[%clk 0:01:06]} 38. Rh7 {[%clk 0:00:15]}  Bg7 {[%clk 0:01:05]} 39. Re3 {[%clk 0:00:12]}  e5 {[%clk 0:01:04]} 40. Rg3 {[%clk 0:00:12]}  Rd7 {[%clk 0:01:04]} 41. Rg5 {[%clk 0:00:06]}  e4 {[%clk 0:01:03]} 42. Ba6 {[%clk 0:00:06]}  Nxc2 {[%clk 0:00:56]} 43. Rf5+ {[%clk 0:00:05]}  Rf7 {[%clk 0:00:55]} 44. Rg5 {[%clk 0:00:04]}  Nd4 {[%clk 0:00:49]} 45. Bc8 {[%clk 0:00:02]}  a4 {[%clk 0:00:45]} 46. bxa4 {[%clk 0:00:01]}  Bxa2 {[%clk 0:00:45]} 47. a5 {[%clk 0:00:02]}  b3 {[%clk 0:00:44]} 0-1


[Site "https://www.chess.com"]